fUST/lending_fUST_20250827
["ID","MTS","AMOUNT","RATE_DAILY","PERIOD"]
[381641262,1756300272020,-1168.45,0.00023287,2]
[381641264,1756300272029,-480.0,0.00023287,2]
[381641266,1756300272039,-480.0,0.00023287,2]
[381641268,1756300272049,-480.0,0.00023287,2]
[381641271,1756300272059,-480.0,0.00023287,2]
[381641273,1756300272069,-480.0,0.00023287,2]
[381641275,1756300272079,-480.0,0.00023287,2]
[381641277,1756300272089,-480.0,0.00023287,2]
[381641279,1756300272099,-687.72,0.00023287,2]
[381641281,1756300272109,-1375.52,0.00023287,2]
[381641283,1756300272118,-609.53,0.00023287,2]
[381641285,1756300272128,-271.83694092,0.00023287,2]
[381641287,1756300272138,-480.0,0.00023287,2]
[381641289,1756300272147,-561.9879477,0.00023287,2]
[381641291,1756300272157,-480.0,0.00023287,2]
[381641293,1756300272166,-480.0,0.00023287,2]
[381641295,1756300272176,-629.17,0.00023287,2]
[381641297,1756300272186,-480.0,0.00023287,2]
[381641299,1756300272195,-480.0,0.00023287,2]
[381641301,1756300272205,-879.01,0.00023287,2]
[381641303,1756300272215,-480.0,0.00023287,2]
[381641305,1756300272226,-480.0,0.00023287,2]
[381641307,1756300272236,-553.05,0.00023287,2]
[381641309,1756300272246,-480.0,0.00023287,2]
[381641311,1756300272255,-511.27,0.00023287,2]
[381641313,1756300272265,-480.0,0.00023287,2]
[381641315,1756300272275,-480.0,0.00023287,2]
[381641317,1756300272284,-480.0,0.00023287,2]
[381641319,1756300272294,-480.0,0.00023287,2]
[381641322,1756300272305,-480.0,0.00023287,2]
[381641324,1756300272315,-480.0,0.00023287,2]
[381641326,1756300272324,-1185.91,0.00023287,2]
[381641328,1756300272335,-613.22294239,0.00023287,2]
[381641330,1756300272348,-1100.79,0.00023287,2]
[381641332,1756300272358,-480.0,0.00023287,2]
[381641334,1756300272368,-480.0,0.00023287,2]
[381641335,1756300272377,-480.0,0.00023287,2]
[381641336,1756300272388,-480.0,0.00023287,2]
[381641337,1756300272399,-480.0,0.00023287,2]
[381641338,1756300272408,-674.82,0.00023287,2]
[381641339,1756300272419,-480.0,0.00023287,2]
[381641340,1756300272429,-1582.66,0.00023287,2]
[381641341,1756300272439,-151.0,0.00023287,7]
[381641342,1756300272449,-480.0,0.00023287,2]
[381641343,1756300272458,-480.0,0.00023287,2]
[381641344,1756300272468,-3079.94,0.00023287,2]
[381641345,1756300272478,-1441.98,0.00023287,2]
[381641346,1756300272488,-558.78,0.00023287,2]
[381641347,1756300272498,-480.0,0.00023287,2]
[381641348,1756300272509,-512.86,0.00023287,2]
[381641349,1756300272518,-1247.25,0.00023287,2]
[381641350,1756300272528,-535.83,0.00023287,2]
[381641351,1756300272538,-619.84,0.00023287,2]
[381641352,1756300272548,-1012.69,0.00023287,2]
[381641353,1756300272558,-480.0,0.00023287,2]
[381641354,1756300272568,-372.80016097,0.00023287,2]
[381641355,1756300272578,-480.0,0.00023287,2]
[381641356,1756300272588,-1558.31,0.00023287,2]
[381641357,1756300272598,-575.32,0.00023287,2]
[381641358,1756300272608,-480.0,0.00023287,2]
[381641359,1756300272618,-480.0,0.00023287,2]
[381641360,1756300272628,-480.0,0.00023287,2]
[381641361,1756300272638,-480.0,0.00023287,2]
[381641362,1756300272648,-480.0,0.00023287,2]
[381641363,1756300272658,-379.77178288,0.00023287,2]
[381641364,1756300272668,-1467.04,0.00023287,2]
[381641365,1756300272681,-480.0,0.00023287,2]
[381641366,1756300272691,-1873.26,0.00023287,2]
[381641368,1756300272700,-480.0,0.00023287,2]
[381641369,1756300272710,-480.0,0.00023287,2]
[381641371,1756300272720,-480.0,0.00023287,2]
[381641373,1756300272731,-480.0,0.00023287,2]
[381641375,1756300272741,-480.0,0.00023287,2]
[381641377,1756300272751,-504.11,0.00023287,2]
[381641379,1756300272772,-480.0,0.00023287,2]
[381641381,1756300272792,-480.0,0.00023287,2]
[381641383,1756300272815,-508.08,0.00023287,2]
[381641385,1756300272836,-480.0,0.00023287,2]
[381641387,1756300272858,-480.0,0.00023287,2]
[381641388,1756300272879,-2486.85,0.00023287,2]
[381641391,1756300272901,-482.67385628,0.00023287,2]
[381641392,1756300272923,-480.0,0.00023287,2]
[381641393,1756300272945,-480.0,0.00023287,2]
[381641394,1756300272968,-480.0,0.00023287,2]
[381641395,1756300272989,-768.18,0.00023287,2]
[381641396,1756300272999,-7496.55,0.00023287,2]
[381641397,1756300273009,-480.0,0.00023287,2]
[381641398,1756300273019,-820.29,0.00023287,2]
[381641399,1756300273028,-487.65,0.00023287,2]
[381641400,1756300273038,-480.0,0.00023287,2]
[381641401,1756300273047,-480.0,0.00023287,2]
[381641402,1756300273056,-480.0,0.00023287,2]
[381641403,1756300273066,-480.0,0.00023287,2]
[381641404,1756300273076,-1126.02,0.00023287,2]
[381641405,1756300273086,-480.0,0.00023287,2]
[381641406,1756300273096,-1019.66,0.00023287,2]
[381641407,1756300273106,-480.0,0.00023287,2]
[381641408,1756300273116,-480.0,0.00023287,2]
[381641409,1756300273126,-4097.76,0.00023287,2]
[381641410,1756300273136,-1538.8,0.00023287,2]
[381641411,1756300273145,-480.0,0.00023287,2]
[381641412,1756300273154,-553.39,0.00023287,2]
[381641413,1756300273164,-480.0,0.00023287,2]
[381641414,1756300273173,-563.16,0.00023287,2]
[381641415,1756300273183,-241.79949588,0.00023287,2]
[381641416,1756300273192,-480.0,0.00023287,2]
[381641417,1756300273202,-866.73,0.00023287,2]
[381641418,1756300273212,-532.37,0.00023287,2]
[381641419,1756300273222,-480.0,0.00023287,2]
[381641420,1756300273232,-1089.92,0.00023287,2]
[381641421,1756300273241,-480.0,0.00023287,2]
[381641422,1756300273251,-480.0,0.00023287,2]
[381641423,1756300273260,-480.0,0.00023287,2]
[381641424,1756300273270,-480.0,0.00023287,2]
[381641425,1756300273279,-480.0,0.00023287,2]
[381641426,1756300273289,-480.0,0.00023287,2]
[381641427,1756300273299,-619.83,0.00023287,2]
[381641428,1756300273308,-480.0,0.00023287,2]
[381641429,1756300273318,-480.0,0.00023287,2]
[381641430,1756300273327,-480.0,0.00023287,2]
[381641431,1756300273339,-1480.58,0.00023287,2]
[381641432,1756300273350,-480.0,0.00023287,2]
[381641433,1756300273360,-1080.29,0.00023287,2]
[381641434,1756300273370,-2783.48,0.00023287,2]
[381641435,1756300273379,-849.03,0.00023287,2]
[381641436,1756300273391,-3788.9,0.00023287,2]
[381641437,1756300273400,-1045.46,0.00023287,2]
[381641438,1756300273411,-527.62,0.00023287,2]
[381641439,1756300273423,-403.60220934,0.00023287,2]
[381641440,1756300273433,-480.0,0.00023287,2]
[381641441,1756300273442,-480.0,0.00023287,2]
[381641442,1756300273452,-1135.21,0.00023287,2]
[381641443,1756300273462,-1489.59,0.00023287,2]
[381641444,1756300273472,-480.0,0.00023287,2]
[381641445,1756300273482,-480.0,0.00023287,2]
[381641446,1756300273492,-480.0,0.00023287,2]
[381641448,1756300273502,-1171.32,0.00023287,2]
[381641449,1756300273512,-506.58,0.00023287,2]
[381641451,1756300273521,-1373.52,0.00023287,2]
[381641453,1756300273531,-885.58,0.00023287,2]
[381641455,1756300273540,-521.66,0.00023287,2]
[381641457,1756300273550,-994.97,0.00023287,2]
[381641459,1756300273559,-2291.1,0.00023287,2]
[381641461,1756300273569,-480.0,0.00023287,2]
[381641462,1756300273579,-4941.28,0.00023287,2]
[381641463,1756300273589,-836.96,0.00023287,2]
[381641464,1756300273599,-480.0,0.00023287,2]
[381641465,1756300273608,-805.85,0.00023287,2]
[381641466,1756300273618,-480.0,0.00023287,2]
[381641467,1756300273628,-480.0,0.00023287,2]
[381641468,1756300273638,-480.0,0.00023287,2]
[381641469,1756300273649,-584.58,0.00023287,2]
[381641470,1756300273658,-509.64,0.00023287,2]
[381641471,1756300273668,-826.49,0.00023287,2]
[381641472,1756300273679,-480.0,0.00023287,2]
[381641473,1756300273689,-480.0,0.00023287,2]
[381641474,1756300273698,-480.0,0.00023287,2]
[381641475,1756300273708,-826.37,0.00023287,2]
[381641476,1756300273719,-642.66,0.00023287,2]
[381641477,1756300273729,-647.14,0.00023287,2]
[381641478,1756300273739,-495.41,0.00023287,2]
[381641479,1756300273749,-480.0,0.00023287,2]
[381641480,1756300273759,-480.0,0.00023287,2]
[381641481,1756300273769,-480.0,0.00023287,2]
[381641482,1756300273779,-713.97,0.00023287,2]
[381641483,1756300273790,-706.08,0.00023287,2]
[381641484,1756300273801,-684.55,0.00023287,2]
[381641485,1756300273810,-1220.94,0.00023287,2]
[381641486,1756300273820,-562.5,0.00023287,2]
[381641487,1756300273830,-480.0,0.00023287,2]
[381641488,1756300273839,-480.0,0.00023287,2]
[381641489,1756300273849,-480.0,0.00023287,2]
[381641490,1756300273859,-511.53903116,0.00023287,2]
[381641491,1756300273870,-480.0,0.00023287,2]
[381641492,1756300274064,-480.0,0.00023287,2]
[381641493,1756300274075,-480.0,0.00023287,2]
[381641494,1756300274084,-332.971564,0.00023288,2]
[381641495,1756300274094,-61078.06,0.000233,7]
[381641496,1756300274103,-529.56067766,0.000233,7]
[381641497,1756300274113,-417.15472785,0.000233,7]
[381641498,1756300274122,-160.0,0.000233,7]
[381641499,1756300274132,-720.0,0.00023346,20]
[381641500,1756300274142,-260.0,0.00023348,2]
[381641501,1756300274151,-4147.28420741,0.00023353,2]
[381641502,1756300274161,-5412.34,0.000234,7]
[381641503,1756300274171,-480.0,0.00023561,2]
[381641504,1756300274181,-484.65,0.00023561,2]
[381641505,1756300274191,-602.96,0.00023561,2]
[381641506,1756300274200,-480.0,0.00023561,2]
[381641507,1756300274209,-480.0,0.00023561,2]
[381641508,1756300274219,-602.45,0.00023561,2]
[381641509,1756300274229,-480.0,0.00023561,2]
[381641511,1756300274238,-480.0,0.00023561,2]
[381641512,1756300274248,-480.0,0.00023561,2]
[381641514,1756300274257,-480.0,0.00023561,2]
[381641517,1756300274267,-480.0,0.00023561,2]
[381641518,1756300274276,-480.0,0.00023561,2]
[381641520,1756300274285,-480.0,0.00023561,2]
[381641522,1756300274295,-517.62,0.00023561,2]
[381641524,1756300274304,-480.0,0.00023561,2]
[381641527,1756300274313,-480.0,0.00023561,2]
[381641529,1756300274323,-480.0,0.00023561,2]
[381641530,1756300274332,-480.0,0.00023561,2]
[381641532,1756300274346,-480.0,0.00023561,2]
[381641534,1756300274356,-480.0,0.00023561,2]
[381641536,1756300274365,-863.12,0.00023561,2]
[381641538,1756300274374,-480.0,0.00023561,2]
[381641540,1756300274384,-602.59,0.00023561,2]
[381641541,1756300274395,-480.0,0.00023561,2]
[381641543,1756300274404,-480.0,0.00023561,2]
[381641544,1756300274413,-480.0,0.00023561,2]
[381641546,1756300274425,-710.45,0.00023561,2]
[381641547,1756300274435,-480.0,0.00023561,2]
[381641550,1756300274445,-480.0,0.00023561,2]
[381641551,1756300274454,-480.0,0.00023561,2]
[381641553,1756300274464,-480.0,0.00023561,2]
[381641554,1756300274474,-480.0,0.00023561,2]
[381641555,1756300274484,-480.0,0.00023561,2]
[381641556,1756300274494,-480.0,0.00023561,2]
[381641557,1756300274503,-740.24,0.00023561,2]
[381641558,1756300274513,-480.0,0.00023561,2]
[381641559,1756300274523,-549.84,0.00023561,2]
[381641560,1756300274533,-480.0,0.00023561,2]
[381641561,1756300274543,-480.0,0.00023561,2]
[381641562,1756300274552,-480.0,0.00023561,2]
[381641563,1756300274562,-480.0,0.00023561,2]
[381641564,1756300274571,-480.0,0.00023561,2]
[381641565,1756300274581,-480.0,0.00023561,2]
[381641566,1756300274591,-480.0,0.00023561,2]
[381641567,1756300274600,-1190.92,0.00023561,2]
[381641568,1756300274610,-480.0,0.00023561,2]
[381641569,1756300274620,-480.0,0.00023561,2]
[381641570,1756300274629,-653.11,0.00023561,2]
[381641571,1756300274638,-480.0,0.00023561,2]
[381641572,1756300274649,-701.02,0.00023561,2]
[381641573,1756300274658,-480.0,0.00023561,2]
[381641574,1756300274667,-480.0,0.00023561,2]
[381641575,1756300274677,-480.0,0.00023561,2]
[381641576,1756300274688,-480.0,0.00023561,2]
[381641577,1756300274697,-561.6,0.00023561,2]
[381641578,1756300274707,-480.0,0.00023561,2]
[381641579,1756300274717,-536.08,0.00023561,2]
[381641580,1756300274727,-785.56,0.00023561,2]
[381641581,1756300274737,-707.7,0.00023561,2]
[381641582,1756300274746,-480.0,0.00023561,2]
[381641583,1756300274756,-480.0,0.00023561,2]
[381641584,1756300274766,-480.0,0.00023561,2]
[381641585,1756300274776,-848.07,0.00023561,2]
[381641586,1756300274786,-480.0,0.00023561,2]
[381641587,1756300274795,-480.0,0.00023561,2]
[381641588,1756300274805,-480.0,0.00023561,2]
[381641589,1756300274814,-480.0,0.00023561,2]
[381641590,1756300274824,-480.0,0.00023561,2]
[381641591,1756300274833,-480.0,0.00023561,2]
[381641592,1756300274843,-480.0,0.00023561,2]
[381641593,1756300274853,-480.0,0.00023561,2]
[381641594,1756300274863,-480.0,0.00023561,2]
[381641595,1756300274873,-480.0,0.00023561,2]
[381641596,1756300274882,-1132.16,0.00023561,2]
[381641597,1756300274892,-306.94118864,0.00023561,2]
[381641598,1756300274902,-480.0,0.00023561,2]
[381641599,1756300274912,-480.0,0.00023561,2]
[381641600,1756300274922,-668.2,0.00023561,2]
[381641601,1756300274931,-480.0,0.00023561,2]
[381641602,1756300274941,-480.0,0.00023561,2]
[381641603,1756300274951,-480.0,0.00023561,2]
[381641604,1756300274961,-592.01,0.00023561,2]
[381641605,1756300274970,-480.0,0.00023561,2]
[381641606,1756300274980,-480.0,0.00023561,2]
[381641607,1756300274989,-480.0,0.00023561,2]
[381641608,1756300275000,-480.0,0.00023561,2]
[381641609,1756300275010,-480.0,0.00023561,2]
[381641610,1756300275019,-480.0,0.00023561,2]
[381641611,1756300275029,-480.0,0.00023561,2]
[381641612,1756300275039,-480.0,0.00023561,2]
[381641613,1756300275048,-1077.95,0.00023561,2]
[381641614,1756300275057,-480.0,0.00023561,2]
[381641615,1756300275067,-480.0,0.00023561,2]
[381641616,1756300275077,-480.0,0.00023561,2]
[381641617,1756300275086,-480.0,0.00023561,2]
[381641618,1756300275096,-480.0,0.00023561,2]
[381641619,1756300275106,-480.0,0.00023561,2]
[381641620,1756300275115,-583.15855222,0.00023561,2]
[381641621,1756300275125,-528.98,0.00023561,2]
[381641622,1756300275135,-480.0,0.00023561,2]
[381641623,1756300275144,-534.74,0.00023561,2]
[381641624,1756300275154,-557.3,0.00023561,2]
[381641625,1756300275163,-482.45,0.00023561,2]
[381641626,1756300275173,-480.0,0.00023561,2]
[381641627,1756300275183,-446.17794996,0.00023561,2]
[381641628,1756300275193,-622.33,0.00023561,2]
[381641629,1756300275202,-480.0,0.00023561,2]
[381641630,1756300275211,-480.0,0.00023561,2]
[381641631,1756300275221,-522.2,0.00023561,2]
[381641633,1756300275230,-480.0,0.00023561,2]
[381641635,1756300275240,-480.0,0.00023561,2]
[381641637,1756300275249,-480.0,0.00023561,2]
[381641639,1756300275258,-682.64,0.00023561,2]
[381641641,1756300275268,-480.0,0.00023561,2]
[381641643,1756300275278,-480.0,0.00023561,2]
[381641645,1756300275287,-200.0,0.00023561,2]
[381641647,1756300275297,-200.0,0.00023561,2]
[381641649,1756300275307,-200.0,0.00023561,2]
[381641651,1756300275317,-480.0,0.00023561,2]
[381641653,1756300275326,-200.0,0.00023561,2]
[381641655,1756300275336,-480.0,0.00023561,2]
[381641657,1756300275352,-200.0,0.00023561,2]
[381641659,1756300275361,-174.28772768,0.00023561,2]
[381641661,1756300275371,-200.0,0.00023561,2]
[381641663,1756300275380,-200.0,0.00023561,2]
[381641665,1756300275390,-480.0,0.00023561,2]
[381641667,1756300275400,-480.0,0.00023561,2]
[381641668,1756300275410,-480.0,0.00023561,2]
[381641670,1756300275421,-496.41,0.00023561,2]
[381641671,1756300275432,-480.0,0.00023561,2]
[381641672,1756300275443,-418.97263939,0.00023561,2]
[381641673,1756300275452,-480.0,0.00023561,2]
[381641674,1756300275462,-961.54,0.00023561,2]
[381641675,1756300275471,-480.0,0.00023561,2]
[381641676,1756300275480,-541.92,0.00023561,2]
[381641677,1756300275491,-480.0,0.00023561,2]
[381641678,1756300275500,-489.46,0.00023561,2]
[381641680,1756300275510,-480.0,0.00023561,2]
[381641682,1756300275519,-480.0,0.00023561,2]
[381641684,1756300275531,-483.97,0.00023561,2]
[381641685,1756300275541,-572.57,0.00023561,2]
[381641686,1756300275551,-524.23,0.00023561,2]
[381641687,1756300275562,-480.0,0.00023561,2]
[381641688,1756300275571,-480.0,0.00023561,2]
[381641689,1756300275581,-787.06,0.00023561,2]
[381641690,1756300275590,-480.0,0.00023561,2]
[381641691,1756300275600,-518.41,0.00023561,2]
[381641692,1756300275609,-480.0,0.00023561,2]
[381641693,1756300275619,-480.0,0.00023561,2]
[381641694,1756300275628,-410.99894518,0.00023561,2]
[381641695,1756300275639,-480.0,0.00023561,2]
[381641696,1756300275648,-739.43,0.00023561,2]
[381641697,1756300275659,-480.0,0.00023561,2]
[381641698,1756300275668,-480.0,0.00023561,2]
[381641699,1756300275678,-1255.57,0.00023561,2]
[381641700,1756300275688,-493.24,0.00023561,2]
[381641701,1756300275698,-598.58,0.00023561,2]
[381641702,1756300275707,-402.15511895,0.00023561,2]
[381641703,1756300275717,-480.0,0.00023561,2]
[381641704,1756300275727,-641.42,0.00023561,2]
[381641705,1756300275736,-480.0,0.00023561,2]
[381641706,1756300275746,-728.84,0.00023561,2]
[381641707,1756300275756,-480.0,0.00023561,2]
[381641708,1756300275765,-480.0,0.00023561,2]
[381641709,1756300275775,-696.31,0.00023561,2]
[381641710,1756300275785,-480.0,0.00023561,2]
[381641711,1756300275794,-480.0,0.00023561,2]
[381641712,1756300275803,-600.0,0.00023561,2]
[381641713,1756300275813,-550.69,0.00023561,2]
[381641714,1756300275823,-480.0,0.00023561,2]
[381641715,1756300275832,-555.64,0.00023561,2]
[381641716,1756300275842,-480.0,0.00023561,2]
[381641717,1756300275851,-480.0,0.00023561,2]
[381641718,1756300275861,-480.0,0.00023561,2]
[381641719,1756300275870,-480.0,0.00023561,2]
[381641720,1756300275879,-480.0,0.00023561,2]
[381641721,1756300275889,-516.93,0.00023561,2]
[381641722,1756300275899,-480.0,0.00023561,2]
[381641723,1756300275908,-480.0,0.00023561,2]
[381641724,1756300275918,-480.0,0.00023561,2]
[381641725,1756300275928,-480.0,0.00023561,2]
[381641726,1756300275938,-500.0,0.00023561,2]
[381641727,1756300275947,-480.0,0.00023561,2]
[381641728,1756300275957,-480.0,0.00023561,2]
[381641729,1756300275966,-4811.31,0.00023561,2]
[381641730,1756300275976,-480.0,0.00023561,2]
[381641731,1756300275985,-480.0,0.00023561,2]
[381641732,1756300275995,-480.0,0.00023561,2]
[381641733,1756300276004,-480.0,0.00023561,2]
[381641734,1756300276014,-480.0,0.00023561,2]
[381641735,1756300276024,-892.28,0.00023561,2]
[381641736,1756300276033,-480.0,0.00023561,2]
[381641737,1756300276043,-648.11,0.00023561,2]
[381641738,1756300276052,-480.0,0.00023561,2]
[381641739,1756300276062,-628.16,0.00023561,2]
[381641740,1756300276071,-480.0,0.00023561,2]
[381641741,1756300276081,-480.0,0.00023561,2]
[381641742,1756300276090,-496.15,0.00023561,2]
[381641743,1756300276100,-520.69,0.00023561,2]
[381641744,1756300276109,-700.56,0.00023561,2]
[381641745,1756300276119,-480.0,0.00023561,2]
[381641746,1756300276129,-531.78,0.00023561,2]
[381641747,1756300276139,-480.0,0.00023561,2]
[381641748,1756300276148,-218.64469174,0.00023561,2]
[381641749,1756300276157,-482.45911232,0.00023561,2]
[381641750,1756300276168,-480.0,0.00023561,2]
[381641751,1756300276177,-2061.31,0.00023561,2]
[381641752,1756300276187,-548.5,0.00023561,2]
[381641753,1756300276196,-598.63,0.00023561,2]
[381641754,1756300276206,-707.22,0.00023561,2]
[381641755,1756300276215,-592.64,0.00023561,2]
[381641756,1756300276226,-480.0,0.00023561,2]
[381641757,1756300276236,-480.0,0.00023561,2]
[381641758,1756300276246,-480.0,0.00023561,2]
[381641759,1756300276256,-480.0,0.00023561,2]
[381641760,1756300276266,-480.0,0.00023561,2]
[381641761,1756300276275,-480.0,0.00023561,2]
[381641762,1756300276286,-480.0,0.00023561,2]
[381641763,1756300276296,-500.0,0.00023561,2]
[381641764,1756300276305,-499.75,0.00023561,2]
[381641765,1756300276315,-1499.56,0.00023561,2]
[381641766,1756300276327,-480.0,0.00023561,2]
[381641767,1756300276339,-536.82,0.00023561,2]
[381641768,1756300276349,-480.0,0.00023561,2]
[381641769,1756300276359,-480.0,0.00023561,2]
[381641770,1756300276369,-851.04,0.00023561,2]
[381641771,1756300276379,-480.0,0.00023561,2]
[381641772,1756300276390,-480.0,0.00023561,2]
[381641773,1756300276402,-480.0,0.00023561,2]
[381641775,1756300276411,-621.12,0.00023561,2]
[381641777,1756300276422,-480.0,0.00023561,2]
[381641779,1756300276433,-480.0,0.00023561,2]
[381641781,1756300276443,-480.0,0.00023561,2]
[381641783,1756300276452,-480.0,0.00023561,2]
[381641785,1756300276462,-502.73,0.00023561,2]
[381641793,1756300276523,-540.63,0.00023561,2]
[381641795,1756300276532,-1154.23,0.00023561,2]
[381641797,1756300276542,-480.0,0.00023561,2]
[381641799,1756300276552,-480.0,0.00023561,2]
[381641800,1756300276562,-480.0,0.00023561,2]
[381641802,1756300276572,-480.0,0.00023561,2]
[381641803,1756300276581,-991.65,0.00023561,2]
[381641805,1756300276591,-2209.59,0.00023561,2]
[381641807,1756300276601,-480.0,0.00023561,2]
[381641808,1756300276610,-1168.45,0.00023561,2]
[381641809,1756300276619,-480.0,0.00023561,2]
[381641811,1756300276628,-480.0,0.00023561,2]
[381641812,1756300276638,-480.0,0.00023561,2]
[381641813,1756300276648,-480.0,0.00023561,2]
[381641814,1756300276657,-480.0,0.00023561,2]
[381641815,1756300276666,-480.0,0.00023561,2]
[381641816,1756300276676,-480.0,0.00023561,2]
[381641817,1756300276686,-687.72,0.00023561,2]
[381641818,1756300276695,-1375.52,0.00023561,2]
[381641819,1756300276705,-609.53,0.00023561,2]
[381641820,1756300276715,-480.0,0.00023561,2]
[381641821,1756300276725,-480.0,0.00023561,2]
[381641822,1756300276735,-480.0,0.00023561,2]
[381641823,1756300276744,-629.17,0.00023561,2]
[381641824,1756300276754,-480.0,0.00023561,2]
[381641825,1756300276763,-480.0,0.00023561,2]
[381641826,1756300276773,-879.01,0.00023561,2]
[381641827,1756300276783,-480.0,0.00023561,2]
[381641828,1756300276792,-553.05,0.00023561,2]
[381641829,1756300276801,-480.0,0.00023561,2]
[381641830,1756300276810,-480.0,0.00023561,2]
[381641831,1756300276820,-511.27,0.00023561,2]
[381641832,1756300276829,-480.0,0.00023561,2]
[381641833,1756300276838,-480.0,0.00023561,2]
[381641834,1756300276848,-480.0,0.00023561,2]
[381641835,1756300276857,-480.0,0.00023561,2]
[381641836,1756300276866,-480.0,0.00023561,2]
[381641837,1756300276875,-480.0,0.00023561,2]
[381641838,1756300276885,-1185.91,0.00023561,2]
[381641839,1756300276894,-1100.79,0.00023561,2]
[381641840,1756300276904,-480.0,0.00023561,2]
[381641841,1756300276912,-480.0,0.00023561,2]
[381641842,1756300276921,-480.0,0.00023561,2]
[381641843,1756300276931,-480.0,0.00023561,2]
[381641844,1756300276940,-480.0,0.00023561,2]
[381641845,1756300276950,-674.82,0.00023561,2]
[381641846,1756300276960,-480.0,0.00023561,2]
[381641847,1756300276970,-1582.66,0.00023561,2]
[381641848,1756300276979,-480.0,0.00023561,2]
[381641849,1756300276988,-480.0,0.00023561,2]
[381641850,1756300276997,-3079.94,0.00023561,2]
[381641851,1756300277007,-1441.98,0.00023561,2]
[381641852,1756300277016,-558.78,0.00023561,2]
[381641853,1756300277025,-480.0,0.00023561,2]
[381641854,1756300277035,-512.86,0.00023561,2]
[381641855,1756300277044,-535.83,0.00023561,2]
[381641856,1756300277054,-1247.25,0.00023561,2]
[381641857,1756300277063,-619.84,0.00023561,2]
[381641858,1756300277073,-1012.69,0.00023561,2]
[381641859,1756300277082,-480.0,0.00023561,2]
[381641860,1756300277091,-480.0,0.00023561,2]
[381641861,1756300277100,-1558.31,0.00023561,2]
[381641862,1756300277109,-575.32,0.00023561,2]
[381641863,1756300277119,-480.0,0.00023561,2]
[381641864,1756300277128,-480.0,0.00023561,2]
[381641865,1756300277138,-480.0,0.00023561,2]
[381641866,1756300277147,-480.0,0.00023561,2]
[381641867,1756300277156,-480.0,0.00023561,2]
[381641868,1756300277166,-1467.04,0.00023561,2]
[381641869,1756300277175,-480.0,0.00023561,2]
[381641870,1756300277185,-1873.26,0.00023561,2]
[381641871,1756300277194,-480.0,0.00023561,2]
[381641872,1756300277204,-480.0,0.00023561,2]
[381641873,1756300277214,-480.0,0.00023561,2]
[381641874,1756300277223,-480.0,0.00023561,2]
[381641875,1756300277233,-504.11,0.00023561,2]
[381641876,1756300277242,-480.0,0.00023561,2]
[381641877,1756300277252,-480.0,0.00023561,2]
[381641878,1756300277261,-508.08,0.00023561,2]
[381641879,1756300277270,-480.0,0.00023561,2]